bitfinex-derivatives/quotes_SOLF0:USTF0_20241016
["timestamp","ask_amount","ask_price","bid_price","bid_amount"]
[1729111693651,3.66061889,155.15,155.14,8.94]
[1729111693843,3.66061889,155.15,155.14,12.24099277]
[1729111694251,3.2228,155.14,155.08,3.2239]
[1729111694447,3.2228,155.14,155.1,1.325]
[1729111694652,3.66061889,155.15,155.11,8.94]
[1729111694856,3.2227,155.14,155.11,8.94]
[1729111695450,12.60061889,155.15,155.11,8.94]
[1729111695651,12.60061889,155.15,155.09,8.94]
[1729111696448,8.94,155.12,155.07,11.7499]
[1729111696643,8.94,155.11,155.07,1.4503]
[1729111696855,3.2239,155.09,155.07,1.4503]
[1729111697049,8.94,155.11,155.07,1.4503]
[1729111697354,3.2236,155.1,155.07,1.4503]
[1729111697549,8.94,155.11,155.07,1.4503]
[1729111698051,8.94,155.09,154.99,2.804]
[1729111698349,4.98251889,155.15,155.0,6.0103]
[1729111698350,8.94,155.06,155.0,6.0103]
[1729111698550,8.94,155.06,155.01,8.94]
[1729111698751,3.2249,155.04,155.01,8.94]
[1729111698945,8.94,155.05,155.01,8.94]
[1729111699151,8.94,155.05,155.0,10.3903]
[1729111699351,3.2253,155.02,155.0,8.94]
[1729111699746,13.94,155.06,154.98,91.83323701]
[1729111700051,4.56,155.08,154.95,4.56]
[1729111700052,13.94,155.04,154.95,4.56]
[1729111700354,3.2266,154.96,154.94,1.3647]
[1729111700554,3.2266,154.96,154.94,4.79820366]
[1729111700756,4.56,155.01,154.93,3.05978207]
[1729111700956,13.94,155.0,154.93,1.4463]
[1729111701159,13.94,155.0,154.93,4.65005508]
[1729111701456,13.94,155.0,154.9,5.9853]
[1729111701457,13.94,154.98,154.9,3.15471965]
[1729111701647,4.56,154.97,154.88,13.94]
[1729111701848,4.56,154.97,154.88,18.77585692]
[1729111702060,3.227,154.94,154.88,17.16182076]
[1729111703760,3.227,154.94,154.9,13.94]
[1729111703956,13.94,155.02,154.92,13.94]
[1729111704261,4.56,155.01,154.92,13.94]
[1729111704655,94.25507155,155.03,154.92,17.14776034]
[1729111704961,4.56,155.02,154.94,13.94]
[1729111705161,4.56,155.02,154.95,5.9521]
[1729111705361,4.56,155.05,154.98,13.94]
[1729111706059,3.2249,155.04,154.98,13.94]
[1729111706452,4.56,155.05,154.98,13.94]
[1729111706654,3.225,155.03,154.98,13.94]
[1729111708168,3.2248,155.04,154.98,17.166]
[1729111708563,3.2248,155.04,154.99,4.56]
[1729111708763,3.2248,155.04,155.0,3.21686669]
[1729111712165,3.2247,155.05,154.99,7.7858]
[1729111713065,1.4383,155.11,155.0,13.94]
[1729111713272,3.2245,155.06,155.0,20.33719957]
[1729111713473,4.56,155.12,155.04,13.94]
[1729111713768,4.56,155.12,155.05,5.9325]
[1729111713973,4.56,155.13,155.05,7.2511]
[1729111714468,4.56,155.13,155.06,13.94]
[1729111714671,13.94,155.16,155.06,13.94]
[1729111714672,3.66061889,155.15,155.06,13.94]
[1729111714966,3.2231,155.12,155.06,17.1643]
[1729111715875,3.2229,155.13,155.08,17.1639]
[1729111716369,3.2229,155.13,155.09,4.58]
[1729111716576,3.2229,155.13,155.1,3.16651618]
[1729111716762,3.2227,155.14,155.09,4.58]
[1729111717370,3.2227,155.14,155.09,7.84873468]
[1729111717570,3.2229,155.13,155.09,7.84873468]
[1729111719273,3.66061889,155.15,155.09,7.84873468]
[1729111719671,3.223,155.13,155.09,7.84873468]
[1729111719871,3.66061889,155.15,155.09,7.84873468]
[1729111720478,3.2234,155.11,155.09,7.84873468]
[1729111721176,3.2234,155.11,155.09,3.26873468]
[1729111721376,3.2234,155.11,155.07,4.58]
[1729111721579,3.2235,155.1,155.07,4.58]
[1729111722778,3.2238,155.09,155.07,4.58]
[1729111724769,3.2229,155.13,155.08,13.94]
[1729111724969,3.66061889,155.15,155.08,17.15962857]
[1729111726776,3.66061889,155.15,155.08,20.38352857]
[1729111727081,3.66061889,155.15,155.08,17.15962857]
[1729111727278,3.2233,155.12,155.08,17.15962857]
[1729111727782,3.66061889,155.15,155.08,17.15962857]
[1729111727977,3.223,155.13,155.08,20.38342857]
[1729111729793,3.2235,155.11,155.08,17.15962857]
[1729111732387,3.2236,155.1,155.08,17.15962857]
[1729111734877,3.2237,155.09,155.08,3.21962857]
[1729111735083,13.94,155.12,155.05,2.6911]
[1729111735280,13.94,155.1,155.0,3.17169957]
[1729111735485,13.94,155.1,154.95,130.56543503]
[1729111735486,13.94,155.08,154.97,21.7461]
[1729111735684,4.58,155.07,154.97,17.1661]
[1729111735881,3.2255,155.01,154.97,21.7461]
[1729111739186,3.2255,155.01,154.98,3.226]
[1729111741093,13.94,155.06,154.96,1.3742]
[1729111741294,3.2261,154.98,154.96,5.9542]
[1729111741492,13.94,155.06,154.96,19.8942]
[1729111741881,3.2257,155.0,154.96,23.1205]
[1729111742086,22.82481165,155.17,154.99,13.94]
[1729111742393,1.3443,155.14,155.07,13.94]
[1729111742589,1.3443,155.14,155.07,21.79375959]
[1729111742797,3.223,155.13,155.07,21.79375959]
[1729111743988,3.2232,155.12,155.07,21.79375959]
[1729111744200,4.58,155.13,155.04,4.58]
[1729111744890,3.2236,155.1,155.04,7.8046]
[1729111745491,3.2236,155.1,155.05,17.1646]
[1729111745892,3.2236,155.1,155.05,13.94]
[1729111746794,4.58,155.13,155.05,13.94]
[1729111747003,3.2238,155.09,155.05,13.94]
[1729111748701,3.2238,155.09,155.05,17.1645]
[1729111749002,3.2234,155.11,155.05,13.94]
[1729111749594,3.2234,155.11,155.06,3.2242]
[1729111754608,4.58,155.13,155.05,13.94]
[1729111754907,3.2236,155.1,155.05,13.94]
[1729111755409,3.2236,155.1,155.05,17.1645]
[1729111756404,3.2236,155.1,155.07,13.94]
[1729111757318,1.3443,155.14,155.07,13.94]
[1729111757613,4.7,155.13,155.07,13.94]
[1729111758312,3.2232,155.12,155.07,17.164]
[1729111759006,3.2232,155.12,155.07,13.94]
[1729111760011,4.7,155.13,155.07,13.94]
[1729111760315,3.2233,155.11,155.07,13.94]
[1729111770106,3.2233,155.12,155.07,17.1641]
[1729111771315,4.7,155.13,155.07,17.1641]
[1729111771316,3.2234,155.11,155.07,17.1641]
[1729111774016,3.2234,155.11,155.07,13.94]
[1729111775323,4.7,155.13,155.01,92.37265846]
[1729111775528,13.94,155.12,155.02,15.55255112]
[1729111775717,13.94,155.1,155.02,1.61255112]
[1729111775915,3.2245,155.06,155.02,10.53255112]
[1729111776130,4.64,155.07,155.03,8.92]
[1729111776520,3.2245,155.06,155.03,8.92]
[1729111776919,3.2245,155.06,155.04,8.92]
[1729111777918,3.2245,155.06,155.02,13.93]
[1729111778313,3.2245,155.06,155.02,15.54277283]
[1729111779321,3.2245,155.06,155.02,13.93]
[1729111780424,3.2247,155.05,155.02,13.93]
[1729111781017,4.64,155.07,155.04,13.93]
[1729111781220,4.64,155.09,155.04,13.93]
[1729111781423,4.64,155.09,155.06,13.93]
[1729111781732,3.224,155.08,155.06,13.93]
[1729111785926,3.2241,155.07,155.04,15.54270832]
[1729111786226,3.2241,155.07,155.04,13.93]
[1729111788619,3.2252,155.02,155.01,4.51083893]
[1729111788824,15.3421,155.08,155.01,1.61280504]
[1729111789018,13.93,155.06,154.97,13.93]
[1729111789225,4.64,155.05,154.98,1.61284889]
[1729111789536,4.64,155.05,154.99,1.61284889]
[1729111789829,3.2256,155.0,154.97,13.93]
[1729111790030,3.2256,155.0,154.98,1.61327007]
[1729111790229,3.2256,155.0,154.97,13.93]
[1729111794032,3.2251,155.03,154.97,13.93]
[1729111794231,4.64,155.05,154.97,13.93]
[1729111794731,3.2257,155.0,154.97,13.93]
[1729111796628,4.64,155.05,154.97,13.93]
[1729111796927,13.93,155.02,154.92,21.77776034]
[1729111797226,3.2265,154.96,154.93,1.61334626]
[1729111797825,3.2265,154.96,154.92,3.20776034]
[1729111798031,3.2265,154.96,154.91,9.48064626]
[1729111798230,3.2265,154.96,154.91,12.75063399]
[1729111798729,13.93,155.0,154.91,12.75063399]
[1729111799033,3.2267,154.95,154.91,11.13728773]
[1729111799835,3.2267,154.95,154.91,6.49728773]
[1729111800036,13.93,155.0,154.91,3.26998773]
[1729111800228,13.93,155.0,154.9,1.61365555]
[1729111800429,13.93,155.0,154.91,3.22327652]
[1729111800927,13.93,154.97,154.88,2.8083]
[1729111801128,3.2269,154.94,154.88,5.98155071]
[1729111801433,4.64,154.94,154.88,4.58415071]
[1729111802026,3.2274,154.92,154.88,4.58415071]
[1729111802639,13.93,154.9,154.71,9.6945]
[1729111802840,3.2287,154.86,154.8,16.8178]
[1729111803036,4.64,154.89,154.8,20.04071101]
[1729111803535,6.0212,154.89,154.8,20.04071101]
[1729111804331,3.2285,154.86,154.81,3.2295]
[1729111805129,6.0212,154.89,154.8,20.04071101]
[1729111805332,3.2288,154.85,154.8,23.27041101]
[1729111805531,3.2288,154.85,154.8,20.04071101]
[1729111806337,3.2289,154.84,154.8,20.04071101]
[1729111806733,3.2289,154.84,154.8,6.11071101]
[1729111809331,13.93,154.88,154.81,3.2294]
[1729111809332,8.0486,154.86,154.81,3.2294]
[1729111810943,3.2289,154.85,154.8,23.27041101]
[1729111811345,4.82,154.86,154.8,23.27041101]
[1729111812542,3.2289,154.84,154.8,9.34041101]
[1729111812944,4.82,154.85,154.8,9.34041101]
[1729111813235,4.82,154.85,154.8,6.11071101]
[1729111813843,3.2289,154.84,154.8,6.11071101]
[1729111815654,3.2293,154.83,154.78,3.23]
[1729111816147,3.2295,154.82,154.77,3.2303]
[1729111816348,3.2295,154.82,154.76,13.93]
[1729111816741,3.2295,154.82,154.78,3.2302]
[1729111817344,3.2291,154.84,154.8,3.2296]
[1729111817544,4.82,154.85,154.8,6.5056468]
[1729111818246,3.229,154.84,154.8,6.5056468]
[1729111818449,4.82,154.85,154.8,6.5056468]
[1729111819146,3.229,154.84,154.8,6.5056468]
[1729111819450,4.82,154.85,154.81,3.2294]
[1729111819649,8.0487,154.85,154.81,3.2294]
[1729111820354,8.0487,154.86,154.82,3.2293]
[1729111820755,8.0487,154.86,154.81,3.20208301]
[1729111821051,8.0487,154.86,154.81,6.43148301]
[1729111821252,8.0487,154.86,154.81,3.20208301]
[1729111821455,13.93,154.88,154.8,15.3584]
[1729111821642,8.0484,154.87,154.82,3.2292]
[1729111821850,8.0484,154.87,154.82,6.46177766]
[1729111822053,8.0484,154.87,154.82,3.2292]
[1729111822251,1.3812,154.89,154.83,3.24065103]
[1729111822550,3.2282,154.88,154.84,3.2289]
[1729111822752,6.2012,154.89,154.83,3.19317961]
[1729111822953,3.2283,154.87,154.83,3.229]
[1729111823157,3.2283,154.87,154.83,6.47966201]
[1729111823354,13.93,154.92,154.82,13.93]
[1729111823657,4.82,154.91,154.82,18.75]
[1729111824057,4.82,154.91,154.82,21.95771168]
[1729111824458,4.82,154.91,154.86,3.2285]
[1729111824459,3.2278,154.9,154.86,3.2285]
[1729111828160,3.2278,154.9,154.86,12.1485]
[1729111830356,8.92,154.88,154.83,8.92]
[1729111830853,3.2284,154.87,154.83,8.92]
[1729111831059,12.1484,154.87,154.82,15.35691168]
[1729111831255,13.74,154.87,154.82,15.35691168]
[1729111832560,3.2285,154.86,154.82,15.35691168]
[1729111836962,13.74,154.87,154.82,6.43691168]
[1729111837168,3.2288,154.85,154.82,15.35691168]
[1729111838966,3.2295,154.82,154.79,4.658]
[1729111839171,8.92,154.84,154.79,1.4281]
[1729111839673,3.2296,154.81,154.79,4.68510536]
[1729111840571,8.92,154.84,154.79,4.68510536]
[1729111841074,3.2296,154.81,154.79,4.68510536]
[1729111841270,8.92,154.84,154.79,4.68510536]
[1729111841469,3.2287,154.85,154.8,8.92]
[1729111841767,8.92,154.86,154.8,8.92]
[1729111842175,3.2291,154.83,154.8,12.1496]
[1729111844675,8.92,154.86,154.8,8.92]
[1729111844981,3.2287,154.85,154.82,12.1493]
[1729111845668,3.2289,154.85,154.82,8.92]
[1729111846277,3.229,154.84,154.82,8.92]
[1729111850080,3.229,154.84,154.82,12.1493]
[1729111850286,8.92,154.86,154.82,12.1493]
[1729111850581,3.2288,154.85,154.82,12.1493]
[1729111851480,3.2285,154.86,154.83,12.149]
[1729111851876,3.2285,154.86,154.83,8.92]
[1729111852082,3.2285,154.86,154.82,12.1493]
[1729111853477,3.2285,154.86,154.84,8.92]
[1729111857488,10.3055,154.88,154.84,8.92]
[1729111857685,3.2284,154.87,154.84,8.92]
[1729111858685,1.3855,154.88,154.84,8.92]
[1729111858886,8.068,154.89,154.84,8.92]
[1729111859483,8.068,154.89,154.85,3.2287]
[1729111859683,8.068,154.89,154.84,8.92]
[1729111860183,8.068,154.89,154.84,12.1489]
[1729111860384,3.2282,154.88,154.84,12.1489]
[1729111866592,3.2283,154.87,154.84,12.1489]
[1729111866892,1.362,154.92,154.86,12.1484]
[1729111867089,15.002,154.92,154.88,8.92]
[1729111867293,3.2275,154.91,154.88,8.92]
[1729111867683,3.2275,154.91,154.89,12.16722293]
[1729111867885,8.92,154.93,154.89,8.92]
[1729111868196,4.72,154.95,154.92,8.92]
[1729111868394,80.0569,154.97,154.92,12.17529578]
[1729111868395,10.3769,154.97,154.92,12.17529578]
[1729111868586,4.72,154.96,154.92,12.17529578]
[1729111869293,3.227,154.94,154.92,12.17529578]
[1729111870490,3.227,154.94,154.89,4.84187653]
[1729111870687,3.227,154.94,154.9,8.92]
[1729111872691,3.2271,154.93,154.9,8.92]
[1729111873395,3.2271,154.93,154.91,8.92]
[1729111874192,1.4569,154.97,154.92,8.92]
[1729111874394,100.64126851,155.01,154.94,8.92]
[1729111874696,13.64,155.0,154.94,8.92]
[1729111874888,3.2266,154.96,154.91,4.6773]
[1729111875096,8.92,154.97,154.91,4.6773]
[1729111875300,8.92,154.97,154.92,8.92]
[1729111875496,8.92,154.97,154.91,1.45]
[1729111875798,8.92,154.97,154.92,8.92]
[1729111875997,8.92,154.98,154.93,8.92]
[1729111876488,3.2267,154.95,154.93,8.92]
[1729111876687,19.39,155.1,154.94,8.92]
[1729111876892,4.72,155.04,154.97,8.92]
[1729111877092,8.92,155.02,154.97,8.92]
[1729111877300,3.2256,155.0,154.97,8.92]
[1729111877796,3.2256,155.0,154.97,12.14295378]
[1729111878396,3.2256,155.0,154.97,3.22295378]
[1729111878598,3.2256,155.0,154.96,8.92]
[1729111879199,3.2256,155.0,154.97,3.21778982]
[1729111881598,3.2256,155.0,154.96,8.92]
[1729111882099,3.2256,155.0,154.95,12.1466]
[1729111883797,3.2256,155.0,154.96,8.92]
[1729111884603,3.2256,155.0,154.98,8.92]
[1729111884904,2.6607,155.06,154.99,8.92]
[1729111885104,11.5807,155.06,155.01,8.92]
[1729111885403,16.3007,155.06,155.01,8.92]
[1729111885604,3.2249,155.04,155.01,12.18406437]
[1729111886504,16.3007,155.06,154.97,3.2261]
[1729111886505,8.92,155.03,154.97,3.2261]
[1729111886798,8.92,155.03,154.98,8.92]
[1729111887493,3.2251,155.03,155.0,8.92]
[1729111887698,3.2251,155.03,155.01,8.92]
[1729111888297,3.2249,155.04,155.01,12.08451612]
[1729111892910,3.2249,155.04,155.01,3.16451612]
[1729111893110,3.2249,155.04,155.0,8.92]
[1729111893713,8.92,155.01,155.0,3.16278469]
[1729111894118,8.92,155.01,154.93,4.72]
[1729111894416,3.2261,154.98,154.94,12.1467]
[1729111895318,3.2261,154.98,154.95,8.92]
[1729111896515,8.92,155.01,154.95,8.92]
[1729111896718,3.2263,154.97,154.95,8.92]
[1729111899714,8.92,155.01,154.95,8.92]
[1729111899915,3.2264,154.96,154.95,8.92]
[1729111906424,3.2266,154.95,154.94,8.92]
[1729111906720,8.92,154.97,154.92,1.3367]
[1729111906922,3.2271,154.93,154.92,10.2567]
[1729111914632,3.2271,154.93,154.89,7.82783731]
[1729111914933,3.2271,154.93,154.91,8.92]
[1729111915723,3.2271,154.93,154.91,12.1474]
[1729111918232,3.2269,154.94,154.91,12.1474]
[1729111920643,3.2269,154.94,154.91,8.92]
[1729111920938,3.2269,154.94,154.92,3.2273]
[1729111922038,3.2269,154.94,154.93,8.92]
[1729111922340,3.2266,154.96,154.93,12.1469]
[1729111922539,3.2266,154.96,154.95,8.92]
[1729111923135,7.4479,154.99,154.95,12.1466]
[1729111923350,2.7679,154.99,154.96,8.92]
[1729111923537,7.4479,154.99,154.96,8.92]
[1729111924138,3.2261,154.98,154.96,8.92]
[1729111924841,9.3,154.99,154.96,8.92]
[1729111925442,1.3679,155.04,154.96,8.92]
[1729111925640,1.3679,155.04,155.01,8.92]
[1729111925847,1.3828,155.05,155.03,8.92]
[1729111926042,4.62,155.08,155.03,8.92]
[1729111926234,7.844,155.08,155.05,8.92]
[1729111927049,7.844,155.08,155.06,8.92]
[1729111927540,4.62,155.08,155.06,8.92]
[1729111928337,2.7949,155.12,155.07,8.92]
[1729111928541,2.7949,155.12,155.1,8.92]
[1729111929350,3.2233,155.11,155.08,8.92]
[1729111930348,3.2233,155.11,155.07,12.08551635]
[1729111934550,3.2233,155.11,155.09,8.92]
[1729111939955,3.2231,155.12,155.1,8.92]
[1729111940264,4.62,155.13,155.1,8.92]
[1729111940559,3.223,155.13,155.1,8.92]
[1729111942558,3.223,155.13,155.07,3.16551635]
[1729111942559,8.28061889,155.15,155.11,8.92]
[1729111942763,3.2228,155.14,155.11,8.92]
[1729111945163,3.2229,155.13,155.11,8.92]
[1729111946065,3.66061889,155.15,155.12,8.92]
[1729111946266,6.88321889,155.15,155.13,8.92]
[1729111947258,3.66061889,155.15,155.13,8.92]
[1729111948257,3.2227,155.14,155.12,8.92]
[1729111948467,3.66061889,155.15,155.12,8.92]
[1729111948661,3.66061889,155.15,155.11,8.92]
[1729111948964,3.2229,155.14,155.11,8.92]
[1729111949366,3.66061889,155.15,155.09,7.8436]
[1729111949367,3.2233,155.12,155.09,8.92]
[1729111950769,3.2233,155.11,155.09,8.92]
[1729111950963,3.66061889,155.15,155.11,3.2233]
[1729111951162,3.66061889,155.15,155.14,8.92]
[1729111951360,6.88311889,155.15,155.14,8.92]
[1729111952272,3.66061889,155.15,155.13,8.92]
[1729111952463,12.58061889,155.15,155.1,8.92]
[1729111952970,3.2232,155.12,155.1,8.92]
[1729111954369,3.2233,155.11,155.1,8.92]
[1729111963875,3.2233,155.11,155.08,3.2239]
[1729111964071,3.2233,155.11,155.1,8.92]
[1729111964278,3.2237,155.1,155.08,8.92]
[1729111964479,8.92,155.13,155.09,3.22200012]
[1729111964679,8.92,155.11,155.09,3.22200012]
[1729111964878,3.2239,155.09,155.06,18.2052]
[1729111965078,8.92,155.08,154.98,1.3358]
[1729111965279,8.92,155.08,155.03,8.92]
[1729111965485,4.62,155.11,155.05,8.92]
[1729111965680,13.54,155.11,155.06,3.29163711]
[1729111966084,3.2243,155.07,155.06,3.29163711]
[1729111966380,3.2243,155.07,155.06,8.92]
[1729111966579,13.54,155.11,155.06,12.14948916]
[1729111967385,3.224,155.08,155.06,12.14948916]
[1729111968388,4.62,155.11,155.06,15.37378916]
[1729111968588,4.62,155.11,155.08,8.92]
[1729111968985,7.8434,155.11,155.08,8.92]
[1729111971587,4.62,155.11,155.08,8.92]
[1729111971889,3.2235,155.1,155.08,8.92]
[1729111979000,8.92,155.1,155.06,3.22948916]
[1729111979299,8.92,155.1,155.06,3.2243]
[1729111979596,8.92,155.1,155.06,6.47562206]
[1729111979802,3.2238,155.09,155.06,3.2243]
[1729111980498,3.2238,155.09,155.06,6.41177581]
[1729111980892,8.92,155.1,154.97,101.95914435]
[1729111981096,8.92,155.09,155.04,8.92]
[1729111982603,3.2245,155.06,155.04,8.92]
[1729111983502,3.2246,155.05,155.04,8.92]
[1729111985103,3.2246,155.05,155.03,12.1449]
[1729111986004,3.2246,155.05,155.04,8.92]
[1729111987102,4.6,155.09,155.04,12.1447]
[1729111987399,4.6,155.09,155.05,8.92]
[1729111987596,3.2245,155.06,155.05,3.19219606]
[1729111987804,3.2245,155.06,155.04,12.1447]
[1729111990403,3.2245,155.06,155.05,8.92]
[1729111990607,4.6,155.09,155.05,3.18897129]
[1729111990800,8.92,155.09,155.03,8.92]
[1729111991103,8.92,155.06,155.01,4.6]
[1729111991310,8.92,155.04,154.99,3.03329538]
[1729111991506,8.92,155.04,154.98,10.53249538]
[1729111991805,3.2257,155.0,154.97,15.30935993]
[1729111992002,8.92,155.03,154.97,13.75869538]
[1729111992207,8.92,155.03,154.97,15.38773498]
[1729111993201,8.92,155.03,154.97,12.16153498]
[1729111993406,8.92,155.03,154.98,3.226]
[1729111994409,3.2256,155.0,154.97,17.00074114]
[1729111994611,3.2256,155.0,154.97,15.38763498]
[1729111995108,3.2256,155.0,154.97,17.0007399]
[1729111995304,3.2256,155.0,154.97,15.38763498]
[1729111995810,3.2256,155.0,154.97,17.00072189]
[1729111996011,3.2256,155.0,154.97,15.38763498]
[1729111996214,3.2256,155.0,154.98,8.92]
[1729112000712,3.2256,155.0,154.98,12.146]
[1729112002314,3.2254,155.01,154.99,12.1458]
[1729112004316,3.2254,155.01,155.0,8.92]
[1729112005308,3.2254,155.01,154.99,8.92]
[1729112006914,3.2256,155.0,154.98,3.2259]
[1729112007117,3.2256,155.0,154.97,15.38763498]
[1729112007316,8.92,155.02,154.97,15.38763498]
[1729112007913,3.2259,154.99,154.97,15.38763498]
[1729112016615,8.92,155.02,154.97,12.16153498]
[1729112017619,3.2258,155.01,154.97,15.38793498]
[1729112017815,8.92,155.02,154.97,15.38793498]
[1729112018227,3.2261,154.99,154.97,15.38793498]
[1729112020317,3.2261,154.99,154.95,92.35231456]
[1729112020318,8.92,154.99,154.95,92.35231456]
[1729112020628,8.92,154.96,154.92,10.3318]
[1729112020830,8.92,154.95,154.89,3.14783731]
[1729112021022,8.92,154.95,154.87,7.3395]
[1729112021222,8.92,154.95,154.89,8.92]
[1729112021428,8.92,154.95,154.89,12.14069455]
[1729112021630,3.2277,154.92,154.89,15.36879455]
[1729112022022,3.2277,154.92,154.89,12.14069455]
[1729112022224,3.2274,154.93,154.9,3.228]
[1729112025845,8.92,154.95,154.89,12.14069455]
[1729112026047,3.2277,154.92,154.89,15.36879455]
[1729112027743,3.2277,154.92,154.9,3.228]
[1729112029744,3.228,154.91,154.89,3.22069455]
[1729112029949,8.92,154.95,154.89,8.92]
[1729112030149,8.92,154.95,154.89,12.19383642]
[1729112030351,3.2277,154.92,154.89,6.50183642]
[1729112030744,3.2277,154.92,154.89,3.27383642]
[1729112031049,3.2277,154.92,154.89,8.92]
[1729112031249,3.2277,154.92,154.89,12.17791129]
[1729112032453,3.2277,154.92,154.9,3.228]
[1729112034252,3.2272,154.94,154.92,3.2275]
[1729112034553,3.2272,154.94,154.92,12.1475]
[1729112035148,3.2272,154.94,154.92,8.92]
[1729112037453,3.2272,154.94,154.91,3.2277]
[1729112037653,13.5,154.96,154.9,8.92]
[1729112037854,3.227,154.95,154.92,3.2275]
[1729112038654,12.147,154.95,154.92,3.2275]
[1729112041650,3.2274,154.93,154.9,3.2279]
[1729112045760,3.2274,154.93,154.89,12.17791129]
[1729112046063,3.2274,154.93,154.91,3.2278]
[1729112047264,3.2274,154.93,154.89,3.25791129]
[1729112047562,3.2276,154.92,154.9,3.2279]
[1729112047759,3.2276,154.92,154.88,12.10915429]
[1729112047958,3.2276,154.92,154.89,3.2282]
[1729112050067,12.1476,154.92,154.89,3.2282]
[1729112050263,8.92,154.91,154.88,3.18915429]
[1729112050469,3.2281,154.9,154.88,3.2284]
[1729112050660,3.2281,154.9,154.88,6.48437437]
[1729112050965,3.2281,154.9,154.88,3.2284]
[1729112051365,3.2281,154.9,154.88,6.46306817]
[1729112055668,3.2281,154.9,154.88,3.23466817]
[1729112055964,3.2281,154.9,154.89,3.2282]
[1729112056163,3.2281,154.9,154.89,3.17224565]
[1729112056357,3.2281,154.9,154.88,3.2283]
[1729112056555,3.2281,154.9,154.88,6.38117513]
[1729112060160,8.92,154.9,154.88,3.15287513]
[1729112060366,3.2282,154.89,154.87,4.662]
[1729112060766,4.58,154.92,154.88,3.18915038]
[1729112060961,8.92,154.89,154.82,105.94333486]
[1729112061162,8.92,154.85,154.81,1.3635]
[1729112061361,3.2296,154.83,154.81,3.30568883]
[1729112061567,3.2296,154.83,154.8,3.23]
[1729112062270,3.2296,154.83,154.79,7.8102]
[1729112064671,3.2297,154.82,154.79,7.8102]
[1729112064975,3.2297,154.82,154.8,12.15]
[1729112065571,3.2297,154.82,154.81,8.92]
[1729112065774,3.2297,154.82,154.81,12.07774174]
[1729112067972,3.2294,154.84,154.82,3.2296]
[1729112068374,3.2294,154.84,154.81,12.07774174]
[1729112068566,3.2297,154.82,154.81,3.15774174]
[1729112068767,8.92,154.82,154.76,1.3635]
[1729112068972,8.92,154.8,154.76,1.3635]
[1729112069374,8.92,154.8,154.76,4.5944]
[1729112070176,3.2305,154.79,154.76,4.5944]
[1729112071275,3.2303,154.79,154.76,1.3635]
[1729112071473,4.58,154.81,154.76,1.3635]
[1729112071474,13.5,154.82,154.78,8.92]
[1729112071871,3.2302,154.8,154.78,8.92]
[1729112072270,13.5,154.82,154.78,8.92]
[1729112072470,13.5,154.82,154.78,12.1505]
[1729112072765,8.92,154.81,154.77,8.92]
[1729112072974,8.92,154.81,154.75,8.92]
[1729112073273,3.2302,154.8,154.77,3.2307]
[1729112073474,3.2302,154.8,154.77,12.1507]
[1729112074271,8.92,154.82,154.78,3.2304]
[1729112074476,13.5,154.82,154.78,12.1504]
[1729112074871,3.2301,154.8,154.78,12.1504]